[Event "101st Irish Championship 2022"]
[Site "Dublin"]
[Date "2022.07.10"]
[Round "9.4"]
[White "O`Donnell, Conor"]
[Black "Carroll, Peter"]
[Result "1-0"]
[ECO "E17"]
[WhiteElo "2269"]
[BlackElo "2116"]
[Annotator "RC"]
[PlyCount "57"]
[EventDate "2022.07.05"]
[EventType "swiss"]
[EventCountry "IRL"]
[SourceTitle "playchess.com"]
[Source "ChessBase"]
[SourceQuality "1"]
[TimeControl "40/6300+30:1800+30"]

1. c4 {[%emt 0:00:04]} Nf6 {[%emt 0:01:07]} 2. Nf3 {[%emt 0:05:36]} e6 {[%emt 0:03:20]} 3. g3 {[%emt 0:00:47]} b6 {[%emt 0:00:14]} 4. Bg2 {[%emt 0:00:02]} Bb7 {[%emt 0:00:09]} 5. O-O {[%emt 0:00:03]} Be7 {[%emt 0:00:13]} 6. Nc3 {[%emt 0:00:20]} O-O {[%emt 0:00:02]} 7. Re1 {[%emt 0:01:34]} d5 {[%emt 0:07:38]} 8. cxd5 {[%emt 0:00:03]} exd5 {[%emt 0:00:06]} 9. d4 {[%emt 0:00:07]} Nbd7 {[%emt 0:02:13]} 10. Bf4 {[%emt 0:05:21]} a6 {[%emt 0:01:43]} 11. Ne5 {[%emt 0:02:24]} c5 {[%emt 0:10:50]} 12. Nxd7 {[%emt 0:05:05]} Qxd7 {[%emt 0:00:12]} 13. Na4 {[%emt 0:03:44]} Qc6 {[%emt 0:07:24]} 14. Qb3 {[%emt 0:05:28]} Nd7 {[%emt 0:01:07]} 15. e4 {[%emt 0:06:07]} c4 {[%emt 0:06:49]} 16. exd5 {[%emt 0:03:53]} Qc8 {[%emt 0:02:17]} 17. Nxb6 {[%emt 0:08:17]} cxb3 {[%emt 0:01:32]} 18. Nxc8 {[%emt 0:00:07]} Bb4 {[%emt 0:00:43]} 19. Ne7+ {[%emt 0:00:58]} Kh8 {[%emt 0:00:09]} 20. Re3 {[%emt 0:01:52]} bxa2 {[%emt 0:00:26]} 21. Nc6 {[%emt 0:03:03]} a5 {[%emt 0:01:20]} 22. Rxa2 {[%emt 0:02:50]} Nf6 {[%emt 0:03:49]} 23. h3 {[%emt 0:09:31]} Rfe8 {[%emt 0:03:14]} 24. Be5 {[%emt 0:11:19]} Nd7 {[%emt 0:04:14]} 25. Nxb4 {[%emt 0:02:26]} axb4 {[%emt 0:02:20]} 26. Rxa8 {[%emt 0:00:13]} Bxa8 {[%emt 0:00:31]} 27. Bxg7+ {[%emt 0:00:18]} Kxg7 {[%emt 0:00:09]} 28. Rxe8 {[%emt 0:00:05]} Kf6 {[%emt 0:00:17]} 29. Rxa8 {[%emt 0:00:09]} 1-0

[Event "101st Irish Championship 2022"]
[Site "Dublin"]
[Date "2022.07.10"]
[Round "9.6"]
[White "Flynn, Jacob"]
[Black "Cafolla, Peter"]
[Result "1-0"]
[ECO "D34"]
[WhiteElo "2199"]
[BlackElo "1937"]
[Annotator "RC"]
[PlyCount "105"]
[EventDate "2022.07.05"]
[EventType "swiss"]
[EventCountry "IRL"]
[SourceTitle "playchess.com"]
[Source "ChessBase"]
[SourceQuality "1"]
[TimeControl "40/6300+30:1800+30"]

1. d4 {[%emt 0:01:22]} Nf6 {[%emt 0:00:10]} 2. Nf3 {[%emt 0:00:45]} e6 {[%emt 0:02:33]} 3. c4 {[%emt 0:01:06]} c5 {[%emt 0:01:05]} 4. g3 {[%emt 0:02:57]} d5 {[%emt 0:04:39]} 5. cxd5 {[%emt 0:01:57]} exd5 {[%emt 0:00:17]} 6. Bg2 {[%emt 0:00:03]} Nc6 {[%emt 0:00:19]} 7. O-O {[%emt 0:00:05]} Be7 {[%emt 0:00:06]} 8. Nc3 {[%emt 0:00:10]} O-O {[%emt 0:00:28]} 9. dxc5 {[%emt 0:00:07]} Bxc5 {[%emt 0:00:14]} 10. Na4 {[%emt 0:00:02]} Be7 {[%emt 0:01:13]} 11. Be3 {[%emt 0:00:04]} Re8 {[%emt 0:05:39]} 12. Rc1 {[%emt 0:00:13]} Ne4 {[%emt 0:06:18]} 13. a3 {[%emt 0:16:03]} Be6 {[%emt 0:07:07]} 14. Nd4 {[%emt 0:06:30]} Nxd4 {[%emt 0:05:41]} 15. Bxd4 {[%emt 0:01:15]} b6 {[%emt 0:01:12]} 16. Nc3 {[%emt 0:06:42]} Bf5 {[%emt 0:05:40]} 17. Qa4 {[%emt 0:06:29]} Rc8 {[%emt 0:15:59]} 18. Qxa7 {[%emt 0:21:13]} Nxc3 {[%emt 0:19:03]} 19. Rxc3 {[%emt 0:02:07]} Rxc3 {[%emt 0:01:31]} 20. bxc3 {[%emt 0:02:58]} b5 {[%emt 0:36:16]} 21. Qb7 {[%emt 0:08:55]} Qd7 {[%emt 0:00:00]} 22. Qxd7 {[%emt 0:00:53]} Bxd7 {[%emt 0:00:00]} 23. Bxd5 {[%emt 0:00:30]} Bxa3 {[%emt 0:00:00]} 24. Ra1 {[%emt 0:10:00]} b4 {[%emt 0:00:00]} 25. cxb4 {[%emt 0:01:35]} Bxb4 {[%emt 0:00:00]} 26. Ra7 {[%emt 0:00:45]} Rd8 {[%emt 0:00:00]} 27. Bb6 {[%emt 0:04:05]} Rb8 {[%emt 0:00:00]} 28. Rxd7 {[%emt 0:02:36]} Rxb6 {[%emt 0:00:00]} 29. Rxf7 {[%emt 0:01:32]} Kh8 {[%emt 0:00:00]} 30. Kg2 {[%emt 0:03:21]} g6 {[%emt 0:00:00]} 31. e4 {[%emt 0:00:43]} Bc3 {[%emt 0:00:00]} 32. Rc7 {[%emt 0:07:29]} Bb2 {[%emt 0:00:00]} 33. f4 {[%emt 0:00:49]} Rb5 {[%emt 0:00:00]} 34. Bc4 {[%emt 0:00:56]} Ra5 {[%emt 0:00:00]} 35. e5 {[%emt 0:00:29]} Bxe5 {[%emt 0:00:00]} 36. fxe5 {[%emt 0:00:19]} Rxe5 {[%emt 0:00:00]} 37. h4 {[%emt 0:01:26]} g5 {[%emt 0:00:00]} 38. Rc8+ {[%emt 0:00:22]} Kg7 {[%emt 0:00:00]} 39. Rg8+ {[%emt 0:00:32]} Kh6 {[%emt 0:00:00]} 40. hxg5+ {[%emt 0:00:15]} Rxg5 {[%emt 0:00:00]} 41. Rxg5 {[%emt 0:30:43]} Kxg5 {[%emt 0:25:48]} 42. Kh3 {[%emt 0:00:14]} Kh5 {[%emt 0:00:20]} 43. Be2+ {[%emt 0:00:09]} Kg5 {[%emt 0:00:06]} 44. Bd1 {[%emt 0:00:05]} Kh6 {[%emt 0:00:16]} 45. Kh4 {[%emt 0:00:04]} Kg7 {[%emt 0:00:26]} 46. Kg5 {[%emt 0:00:16]} Kh8 {[%emt 0:01:59]} 47. Kh6 {[%emt 0:00:51]} Kg8 {[%emt 0:01:39]} 48. Bc2 {[%emt 0:00:03]} Kh8 {[%emt 0:00:06]} 49. g4 {[%emt 0:00:04]} Kg8 {[%emt 0:00:24]} 50. g5 {[%emt 0:00:06]} Kh8 {[%emt 0:00:10]} 51. Bb1 {[%emt 0:00:09]} Kg8 {[%emt 0:00:18]} 52. Bxh7+ {[%emt 0:00:07]} Kh8 {[%emt 0:00:03]} 53. Bg8 {[%emt 0:00:06]} 1-0

[Event "101st Irish Championship 2022"]
[Site "Dublin"]
[Date "2022.07.10"]
[Round "9.8"]
[White "Liu, Jason"]
[Black "Venkatesan, Kavin"]
[Result "0-1"]
[ECO "B87"]
[WhiteElo "1746"]
[BlackElo "2076"]
[Annotator "RC"]
[PlyCount "66"]
[EventDate "2022.07.05"]
[EventType "swiss"]
[EventCountry "IRL"]
[SourceTitle "playchess.com"]
[Source "ChessBase"]
[SourceQuality "1"]
[TimeControl "40/6300+30:1800+30"]

1. e4 {[%emt 0:00:03]} c5 {[%emt 0:00:04]} 2. Nf3 {[%emt 0:00:06]} d6 {[%emt 0:00:03]} 3. d4 {[%emt 0:00:07]} cxd4 {[%emt 0:00:04]} 4. Nxd4 {[%emt 0:00:07]} Nf6 {[%emt 0:00:04]} 5. Nc3 {[%emt 0:00:08]} a6 {[%emt 0:00:02]} 6. Bc4 {[%emt 0:00:12]} e6 {[%emt 0:00:04]} 7. Bb3 {[%emt 0:00:38]} b5 {[%emt 0:00:07]} 8. Be3 {[%emt 0:00:46]} Be7 {[%emt 0:00:54]} 9. Qe2 {[%emt 0:01:38]} O-O {[%emt 0:00:08]} 10. O-O-O {[%emt 0:00:53]} b4 {[%emt 0:00:10]} 11. Na4 {[%emt 0:14:34]} Qa5 {[%emt 0:00:22]} 12. Nf3 {[%emt 0:16:39]} Nbd7 {[%emt 0:04:26]} 13. Bd2 {[%emt 0:07:55]} Bb7 {[%emt 0:09:08]} 14. a3 {[%emt 0:18:19]} Qb5 {[%emt 0:00:42]} 15. Nd4 {[%emt 0:03:57]} Qxe2 {[%emt 0:00:47]} 16. Nxe2 {[%emt 0:00:18]} Nxe4 {[%emt 0:00:49]} 17. Be3 {[%emt 0:00:46]} bxa3 {[%emt 0:00:44]} 18. bxa3 {[%emt 0:00:35]} d5 {[%emt 0:03:27]} 19. Kb2 {[%emt 0:02:40]} Bc6 {[%emt 0:09:05]} 20. f3 {[%emt 0:04:08]} Nd6 {[%emt 0:02:44]} 21. Ka2 {[%emt 0:04:13]} Bxa4 {[%emt 0:06:31]} 22. Bxa4 {[%emt 0:00:20]} Ne5 {[%emt 0:00:08]} 23. Bc5 {[%emt 0:04:32]} Rfc8 {[%emt 0:00:41]} 24. Bb4 {[%emt 0:02:03]} Nec4 {[%emt 0:05:32]} 25. Nd4 {[%emt 0:03:37]} a5 {[%emt 0:08:31]} 26. Bxd6 {[%emt 0:02:36]} Bxd6 {[%emt 0:00:15]} 27. Nb5 {[%emt 0:00:32]} Be7 {[%emt 0:01:01]} 28. Rb1 {[%emt 0:01:58]} Nb6 {[%emt 0:01:51]} 29. Na7 {[%emt 0:03:49]} Nxa4 {[%emt 0:00:36]} 30. Nxc8 {[%emt 0:00:12]} Rxc8 {[%emt 0:00:13]} 31. Rb7 {[%emt 0:00:39]} Bf6 {[%emt 0:01:56]} 32. Rc1 {[%emt 0:01:01]} g6 {[%emt 0:02:09]} 33. Ra7 {[%emt 0:02:19]} Rb8 {[%emt 0:00:19]} 0-1

[Event "101st Irish Championship 2022"]
[Site "Dublin"]
[Date "2022.07.10"]
[Round "9.9"]
[White "O`Gorman, Alice"]
[Black "Fox, Anthony"]
[Result "1/2-1/2"]
[ECO "D36"]
[WhiteElo "2043"]
[BlackElo "1945"]
[Annotator "NA RC"]
[PlyCount "118"]
[EventDate "2022.07.05"]
[EventType "swiss"]
[EventCountry "IRL"]
[SourceTitle "playchess.com"]
[Source "ChessBase"]
[SourceQuality "1"]
[TimeControl "40/6300+30:1800+30"]

1. c4 {[%emt 0:00:02]} e6 {[%emt 0:00:09]} 2. Nc3 {[%emt 0:00:03]} d5 {[%emt 0:00:07]} 3. d4 {[%emt 0:00:04]} Nf6 {[%emt 0:00:12]} 4. cxd5 {[%emt 0:00:04]} exd5 {[%emt 0:00:08]} 5. Bg5 {[%emt 0:00:05]} c6 {[%emt 0:00:13]} 6. e3 {[%emt 0:00:04]} Be7 {[%emt 0:00:13]} 7. Bd3 {[%emt 0:00:05]} Nbd7 {[%emt 0:00:49]} 8. Qc2 {[%emt 0:00:08]} h6 {[%emt 0:00:44]} 9. Bh4 {[%emt 0:00:16]} Nh5 {[%emt 0:01:01]} 10. Bxe7 {[%emt 0:00:12]} Qxe7 {[%emt 0:00:06]} 11. O-O-O {[%emt 0:01:07]} Nb6 {[%emt 0:01:32]} 12. Kb1 {[%emt 0:04:28] outshines the older 12.h3.} Be6 {[%emt 0:01:31]} 13. Nf3 {[%emt 0:02:36]} O-O-O {[%emt 0:01:29]} 14. Ne5 {[%emt 0:03:56]} Kb8 {[%emt 0:03:13] [#]} 15. Qb3 $146 {[%emt 0:04:54]} ({Predecessor:} 15. Na4 Nd7 16. Nxd7+ Bxd7 17. Ka1 Bc8 18. Rb1 Nf6 19. b4 Ne8 20. b5 cxb5 21. Rxb5 {1-0 (42) Urkedal,F (2537)-Sylvan,J (2330) Lund 2018}) 15... Rc8 {[%emt 0:09:19]} 16. Rc1 {[%emt 0:02:04]} Nf6 {[%emt 0:17:14]} 17. Be2 {[%emt 0:18:00]} Ne4 {[%emt 0:06:33]} 18. Nxe4 {[%emt 0:04:09]} dxe4 {[%emt 0:02:31]} 19. Qc2 {[%emt 0:00:47]} Bd5 {[%emt 0:12:13]} 20. Bg4 {[%emt 0:06:14]} Rc7 {[%emt 0:02:22]} 21. f3 {[%emt 0:09:17]} exf3 {[%emt 0:03:20]} 22. gxf3 {[%emt 0:03:06]} Rd8 {[%emt 0:03:37]} 23. e4 {[%emt 0:04:00]} Be6 {[%emt 0:01:29]} 24. Bxe6 {[%emt 0:01:33]} Qxe6 {[%emt 0:00:39]} 25. Qc3 {[%emt 0:03:00]} f6 {[%emt 0:05:32]} 26. Nd3 {[%emt 0:00:52]} Qd6 {[%emt 0:05:36]} 27. Nc5 {[%emt 0:03:05]} Nd7 {[%emt 0:01:16]} 28. Nb3 {[%emt 0:02:33]} Nb6 {[%emt 0:02:54]} 29. h4 {[%emt 0:02:49]} Re7 {[%emt 0:03:15]} 30. h5 {[%emt 0:01:53]} f5 $14 {[%emt 0:07:26]} 31. Rhg1 {[%emt 0:04:08]} fxe4 {[%emt 0:01:33]} 32. fxe4 {[%emt 0:00:26]} Qf4 {[%emt 0:04:02]} 33. Nc5 {[%emt 0:02:46]} Nd7 {[%emt 0:04:51]} 34. Nxb7 {[%emt 0:12:56]} Qxe4+ {[%emt 0:08:04]} 35. Ka1 {[%emt 0:00:07]} Kxb7 {[%emt 0:00:46]} 36. Rce1 {[%emt 0:01:18]} Qxe1+ {[%emt 0:01:09]} 37. Rxe1 {[%emt 0:00:05]} Rxe1+ {[%emt 0:00:07]} 38. Qxe1 {[%emt 0:00:05]} Nb6 {[%emt 0:00:20]} 39. Qb4 {[%emt 0:03:28]} Rd7 {[%emt 0:03:23]} 40. a4 {[%emt 0:02:00]} a5 {[%emt 0:00:12]} 41. Qxa5 {[%emt 0:37:15]} Rxd4 {[%emt 0:30:48]} 42. b4 {[%emt 0:01:36]} Rd1+ {[%emt 0:00:00]} 43. Ka2 {[%emt 0:00:00]} Rd2+ {[%emt 0:00:00]} 44. Kb1 {[%emt 0:00:00]} Rd4 {[%emt 0:00:00]} 45. b5 Rxa4 {[%emt 0:00:00]} 46. bxc6+ Kxc6 {[%emt 0:00:00]} 47. Qc3+ Kb5 {[%emt 0:00:00]} 48. Qxg7 Rb4+ {[%emt 0:00:00]} 49. Kc1 Rc4+ {[%emt 0:00:00]} 50. Kd2 Rc6 {[%emt 0:00:00]} 51. Kd3 Rd6+ {[%emt 0:00:00]} 52. Ke4 Kc6 {[%emt 0:00:00]} 53. Kf5 Nd5 {[%emt 0:00:00]} 54. Qa7 Nb6 {[%emt 0:00:00]} 55. Qa2 Kd7 {[%emt 0:00:00]} 56. Ke5 Ke7 {[%emt 0:00:00]} 57. Qb3 Nd7+ {[%emt 0:00:00]} 58. Kf5 Rf6+ {[%emt 0:00:00]} 59. Kg4 Ne5+ {[%emt 0:00:00]} 1/2-1/2

[Event "101st Irish Championship 2022"]
[Site "Dublin"]
[Date "2022.07.10"]
[Round "9.10"]
[White "O'Connell, Gerard"]
[Black "Doyle, Anthony"]
[Result "1-0"]
[ECO "D34"]
[WhiteElo "2052"]
[BlackElo "2116"]
[Annotator "NA RC"]
[PlyCount "105"]
[EventDate "2022.07.05"]
[EventType "swiss"]
[EventCountry "IRL"]
[SourceTitle "playchess.com"]
[Source "ChessBase"]
[SourceQuality "1"]
[TimeControl "40/6300+30:1800+30"]

1. d4 {[%emt 0:00:04]} d5 {[%emt 0:00:32]} 2. c4 {[%emt 0:00:07]} e6 {[%emt 0:00:05]} 3. Nc3 {[%emt 0:00:06]} c5 {[%emt 0:00:09]} 4. cxd5 {[%emt 0:01:06]} exd5 {[%emt 0:00:19]} 5. Nf3 {[%emt 0:00:12]} Nc6 {[%emt 0:02:02]} 6. g3 {[%emt 0:00:23]} Nf6 {[%emt 0:00:21]} 7. Bg2 {[%emt 0:00:22]} Be7 {[%emt 0:03:03]} 8. O-O {[%emt 0:00:14]} O-O {[%emt 0:00:06]} 9. Bg5 {[%emt 0:05:28]} cxd4 {[%emt 0:05:27]} 10. Nxd4 {[%emt 0:02:21]} h6 {[%emt 0:01:05]} 11. Be3 {[%emt 0:05:04]} Re8 {[%emt 0:00:19]} 12. Rc1 {[%emt 0:01:22]} Bf8 {[%emt 0:07:42]} 13. Nxc6 {[%emt 0:04:32]} bxc6 {[%emt 0:00:07]} 14. Na4 {[%emt 0:00:14]} Bd7 {[%emt 0:03:22]} 15. Bc5 {[%emt 0:04:26]} Ne4 {[%emt 0:02:25]} 16. Bxf8 {[%emt 0:01:12]} Kxf8 {[%emt 0:00:08]} 17. f3 {[%emt 0:18:12]} Nf6 {[%emt 0:03:05]} 18. Qd3 {[%emt 0:10:53]} Qe7 {[%emt 0:11:05]} 19. e4 {[%emt 0:01:02]} Rad8 {[%emt 0:01:13]} 20. exd5 {[%emt 0:03:53]} cxd5 {[%emt 0:00:55]} 21. Nc5 {[%emt 0:00:20]} Qe3+ {[%emt 0:01:53]} 22. Qxe3 {[%emt 0:00:20]} Rxe3 {[%emt 0:00:06]} 23. Kf2 {[%emt 0:10:07]} Re7 {[%emt 0:04:49]} 24. Rfd1 {[%emt 0:03:07]} Bb5 {[%emt 0:02:52]} 25. a4 {[%emt 0:05:00]} Bd7 {[%emt 0:02:30]} 26. b4 {[%emt 0:00:21]} Bf5 {[%emt 0:02:50]} 27. g4 {[%emt 0:03:37]} Be6 {[%emt 0:03:26]} 28. Rd4 {[%emt 0:00:22]} Nd7 {[%emt 0:03:28]} 29. h3 {[%emt 0:04:08]} g5 {[%emt 0:02:16]} 30. Bf1 {[%emt 0:00:50]} Rb8 {[%emt 0:04:29]} 31. Na6 {[%emt 0:08:08]} Rb7 {[%emt 0:01:15]} 32. Nc5 {[%emt 0:01:38]} Rb8 {[%emt 0:00:15]} 33. b5 {[%emt 0:00:18]} Nxc5 {[%emt 0:13:57]} 34. Rxc5 {[%emt 0:02:53]} Rbb7 {[%emt 0:00:17]} 35. a5 {[%emt 0:01:29]} Rbc7 {[%emt 0:00:37]} 36. Rxc7 {[%emt 0:00:10]} Rxc7 {[%emt 0:00:06]} 37. Rb4 {[%emt 0:00:21]} Ke7 $16 {[%emt 0:03:13]} 38. b6 {[%emt 0:00:30]} axb6 {[%emt 0:00:24]} 39. axb6 {[%emt 0:00:03]} Rb7 {[%emt 0:00:11]} 40. Ba6 {[%emt 0:00:07]} Rb8 {[%emt 0:00:05]} 41. Ke3 {[%emt 0:30:14]} Kd6 {[%emt 0:30:57]} 42. Kd4 {[%emt 0:00:29]} f6 {[%emt 0:06:33]} 43. b7 {[%emt 0:05:08]} Kc7 {[%emt 0:06:01]} 44. Kc5 {[%emt 0:02:59]} f5 {[%emt 0:07:39]} 45. Rb6 {[%emt 0:00:24]} Bd7 {[%emt 0:04:48]} 46. Rxh6 {[%emt 0:02:23]} fxg4 {[%emt 0:00:17]} 47. hxg4 {[%emt 0:00:19]} Rd8 {[%emt 0:01:25]} 48. Rd6 {[%emt 0:03:09]} Rg8 {[%emt 0:02:40]} 49. Rxd5 {[%emt 0:00:25]} Rg7 {[%emt 0:00:46]} 50. Rd3 {[%emt 0:01:41]} Kb8 {[%emt 0:00:33]} 51. Rd6 {[%emt 0:05:13]} Ka7 {[%emt 0:01:17]} 52. Rf6 {[%emt 0:00:22]} Rg8 {[%emt 0:01:02]} 53. Bc4 {[%emt 0:00:17]} 1-0

[Event "101st Irish Championship 2022"]
[Site "Dublin"]
[Date "2022.07.10"]
[Round "9.11"]
[White "Goss, Alex"]
[Black "Ivanov, Andrey A."]
[Result "1-0"]
[ECO "D02"]
[WhiteElo "1859"]
[BlackElo "2180"]
[Annotator "RC"]
[PlyCount "95"]
[EventDate "2022.07.05"]
[EventType "swiss"]
[EventCountry "IRL"]
[SourceTitle "playchess.com"]
[Source "ChessBase"]
[SourceQuality "1"]
[TimeControl "40/6300+30:1800+30"]

1. Nf3 {[%emt 0:00:02]} d5 {[%emt 0:00:11]} 2. d4 {[%emt 0:00:06]} c6 {[%emt 0:00:29]} 3. Bf4 {[%emt 0:00:22]} Nf6 {[%emt 0:00:11]} 4. e3 {[%emt 0:00:06]} Bf5 {[%emt 0:00:35]} 5. c3 {[%emt 0:00:08]} e6 {[%emt 0:01:16]} 6. Bd3 {[%emt 0:00:34]} Bg6 {[%emt 0:00:23]} 7. Ne5 {[%emt 0:01:09]} Bxd3 {[%emt 0:04:38]} 8. Qxd3 {[%emt 0:00:07]} Bd6 {[%emt 0:00:23]} 9. Nd2 {[%emt 0:00:21]} Qc7 {[%emt 0:00:53]} 10. O-O {[%emt 0:01:58]} Nbd7 {[%emt 0:02:48]} 11. Ndf3 {[%emt 0:02:31]} O-O {[%emt 0:02:32]} 12. c4 {[%emt 0:06:51]} dxc4 {[%emt 0:12:10]} 13. Qxc4 {[%emt 0:00:24]} Nd5 {[%emt 0:02:11]} 14. Bg3 {[%emt 0:00:41]} f6 {[%emt 0:00:38]} 15. Nxd7 {[%emt 0:00:29]} Qxd7 {[%emt 0:00:09]} 16. e4 {[%emt 0:00:57]} Bxg3 {[%emt 0:02:53]} 17. hxg3 {[%emt 0:00:08]} Nb6 {[%emt 0:00:15]} 18. Qb3 {[%emt 0:00:08]} Rfd8 {[%emt 0:01:45]} 19. a4 {[%emt 0:01:36]} h6 {[%emt 0:08:12]} 20. a5 {[%emt 0:08:59]} Nc8 {[%emt 0:00:25]} 21. Rad1 {[%emt 0:00:22]} Ne7 {[%emt 0:02:02]} 22. Nh4 {[%emt 0:04:04]} Kh7 {[%emt 0:07:21]} 23. f4 {[%emt 0:12:50]} f5 {[%emt 0:08:32]} 24. Rfe1 {[%emt 0:09:26]} Re8 {[%emt 0:10:51]} 25. Nf3 {[%emt 0:05:14]} Ng6 {[%emt 0:16:02]} 26. Ne5 {[%emt 0:04:08]} Nxe5 {[%emt 0:00:32]} 27. dxe5 {[%emt 0:00:07]} Qe7 {[%emt 0:02:26]} 28. exf5 {[%emt 0:01:06]} exf5 {[%emt 0:00:19]} 29. Qd3 {[%emt 0:00:17]} Rf8 {[%emt 0:03:15]} 30. Qd6 {[%emt 0:01:51]} Qxd6 {[%emt 0:03:02]} 31. Rxd6 {[%emt 0:02:25]} Rad8 {[%emt 0:00:22]} 32. Red1 {[%emt 0:00:10]} Rxd6 {[%emt 0:00:18]} 33. Rxd6 {[%emt 0:00:08]} Rf7 {[%emt 0:00:11]} 34. b4 {[%emt 0:01:16]} Rc7 {[%emt 0:01:00]} 35. Rd4 {[%emt 0:13:18]} Kg6 {[%emt 0:02:19]} 36. Kf2 {[%emt 0:00:21]} Kf7 {[%emt 0:00:32]} 37. Ke3 {[%emt 0:00:27]} b6 {[%emt 0:00:37]} 38. Kd3 {[%emt 0:00:49]} c5 {[%emt 0:00:39]} 39. bxc5 {[%emt 0:00:48]} Rxc5 {[%emt 0:00:11]} 40. axb6 {[%emt 0:01:04]} axb6 {[%emt 0:00:13]} 41. Rd7+ {[%emt 0:30:09]} Kg6 {[%emt 0:30:17]} 42. Rd6+ {[%emt 0:00:10]} Kf7 {[%emt 0:00:38]} 43. Rxb6 {[%emt 0:00:09]} Rc1 {[%emt 0:00:18]} 44. Rb7+ {[%emt 0:00:18]} Ke6 {[%emt 0:00:25]} 45. Rxg7 {[%emt 0:00:15]} h5 {[%emt 0:00:08]} 46. Rg6+ {[%emt 0:00:12]} Kd5 {[%emt 0:00:06]} 47. Rd6+ {[%emt 0:00:51]} Kc5 {[%emt 0:00:07]} 48. Rf6 {[%emt 0:00:42]} 1-0